Cogmind - Beta 15 @@@ ROGUE MODE // 2025.07.20 @ 22:59:58 Player: Occam Result: Destroyed by D-53 Grenadier with Mini Grenade Launcher Performance ------------- Evolutions (0) 0 Regions Visited (4) 800 Robots Destroyed (39) 195 Value Destroyed (794) 794 Prototype IDs (23) 460 Alien Tech Used (0) 0 Bonus (314) 314 TOTAL SCORE: 2563 Bonus ------- Follower Combat Kills 14 Aligned with FarCom 300 Cogmind --------- Core Integrity 0/250 Matter 294/300 Energy 97/100 System Corruption 0% Temperature Cool (15) Movement Treading (240) Ox1 Location -9/Mines Parts ------- > --- POWER (1) -------- (None) > --- PROPULSION (2) --- Light Treads > --- UTILITY (2) ------ Large Storage Unit > --- WEAPON (2) ------- Beam Cannon > --- INVENTORY (15) --- Light Nuclear Core Light Treads Compact Wheel Large Storage Unit Structural Scanner Signal Interpreter Improved Terrain Scanner Modified TNC Assault Rifle Assault Rifle Assault Rifle Rocket Launcher Mining Laser Hammer Peak State ------------ > --- POWER ------------ Ion Engine > --- PROPULSION ------- Light Treads Light Treads > --- UTILITY ---------- Large Storage Unit Seismic Detector > --- WEAPON ----------- Beam Cannon Assault Rifle > --- INVENTORY -------- Light Nuclear Core Light Treads Compact Wheel Large Storage Unit Structural Scanner Signal Interpreter Improved Terrain Scanner Modified TNC Beam Cannon Assault Rifle Assault Rifle Assault Rifle Assault Rifle Mining Laser Hammer [Rating: 9] Favorites ----------- Power Ion Engine Engine Ion Engine Propulsion Light Treads Treads Light Treads Leg Aluminum Leg Utility Large Storage Unit Device Seismic Detector Storage Large Storage Unit Weapon Assault Rifle Energy Gun Small Laser Energy Cannon Beam Cannon Ballistic Gun Assault Rifle Special Weapon Mining Laser Build | -11 -10 -10 -10 -9 ------- Run | Yrd Mat Min Exi Min Slots Evolved . | . . . . . Power . | . . . . . Propulsion . | . . . . . Utility . | . . . . . Weapon . | . . . . . Parts Attached 14 | 4 7 1 . 2 Power 3 | . 2 1 . . Engine 3 | . 2 1 . . Core . | . . . . . Reactor . | . . . . . Propulsion 2 | 2 . . . . Treads 2 | 2 . . . . Leg . | . . . . . Wheel . | . . . . . Hover . | . . . . . Flight . | . . . . . Utility 3 | 1 2 . . . Device 2 | 1 1 . . . Storage 1 | . 1 . . . Processor . | . . . . . Hackware . | . . . . . Protection . | . . . . . Artifact . | . . . . . Weapon 6 | 1 3 . . 2 Energy Gun . | . . . . . Energy Cannon 2 | . 1 . . 1 Ballistic Gun 3 | 1 1 . . 1 Ballistic Cannon . | . . . . . Launcher . | . . . . . Special Weapon 1 | . 1 . . . Impact Weapon . | . . . . . Slashing Weapon . | . . . . . Piercing Weapon . | . . . . . Special Melee Weapon . | . . . . . Unidentified Prototypes . | . . . . . Parts Lost 7 | . 1 1 . 5 Power 3 | . 1 1 . 1 Propulsion 1 | . . . . 1 Utility 1 | . . . . 1 Weapon 2 | . . . . 2 Highest Loss Streak 5 | . 1 1 . 5 To Critical Strikes . | . . . . . Average Backups 12 | 6 10 14 15 15 Power 1 | 1 1 1 1 1 Propulsion 1 | 3 1 2 2 2 Utility 3 | . 3 4 4 5 Weapon 5 | 1 4 7 7 7 Tool/Special . | . . . . . Unused Backups 23 | 7 3 . 1 12 Power 4 | 1 1 . 1 1 Propulsion 6 | 4 . . . 2 Utility 6 | 1 1 . . 4 Weapon 7 | 1 1 . . 5 Tool/Special . | . . . . . Average Slot Usage (%) 99 | . 99 100 100 99 Engine 14 | . 14 14 14 14 Treads 27 | . 27 28 28 27 Device 13 | . 14 14 14 13 Storage 14 | . 14 14 14 14 Energy Cannon 13 | . 12 14 14 14 Ballistic Gun 13 | . 12 14 14 14 Peak Build Rating 9 | 8 8 8 9 9 Average Rating 8 | 6 7 7 8 8 On Entrance 7 | 6 7 8 8 9 Naked Turns . | . . . . . Heaviest Build 31 | 12 31 31 31 31 Greatest Support 40 | 40 40 40 40 40 Greatest Overweight (x) 1 | . 1 . . 1 Average Overweight (x) . | . . . . . Largest Inventory Capacity 15 | 8 15 15 15 15 Average Capacity 13 | 8 13 15 15 15 Most Carried 15 | 8 15 15 15 15 Average Carried 12 | 6 10 14 15 14 Final Capacity 15 | 8 15 15 15 15 Final Carried 15 | 5 15 15 15 14 Class Distribution -------------------- 100% | Mutant Dominant Class ---------------- Mutant | -10/Materials Mutant | -10/Mines Mutant | -10/Exiles Mutant | -9/Mines Resources | -11 -10 -10 -10 -9 ----------- Run | Yrd Mat Min Exi Min Matter Collected 666 | 258 269 119 . 20 Remotely . | . . . . . Salvage Created 1215 | 128 839 204 . 44 Parts 80 | 11 58 8 . 3 Haulers Intercepted . | . . . . . Recyclers Shooed 2 | 1 1 . . . Parts Field Recycled . | . . . . . Retrieved Matter . | . . . . . Parts Self-Destructed . | . . . . . Prevented . | . . . . . Kills | -11 -10 -10 -10 -9 ------- Run | Yrd Mat Min Exi Min Combat Hostiles Destroyed 26 | . 21 2 . 3 Guns 11 | . 11 . . . Cannons 14 | . 10 1 . 3 Classes Destroyed 8 | 2 5 1 . . Worker 1 | . . 1 . . Builder 2 | . 1 1 . . Tunneler 3 | 3 . . . . Recycler 3 | 1 1 1 . . Operator 2 | . 2 . . . Watcher 2 | . 2 . . . Swarmer 10 | . 7 . . 3 Grunt 16 | . 14 2 . . Best Kill Streak 4 | 2 4 2 . 2 Combat Bots Only 3 | . 3 2 . 2 Max Kills in Single Turn 2 | 1 2 2 . 1 Gunslinging 1 | . 1 . . . Exploded . | . . . . . Melee . | . . . . . Uniques/NPCs Destroyed . | . . . . . Combat | -11 -10 -10 -10 -9 -------- Run | Yrd Mat Min Exi Min Hostile Shots Fired 111 | . 86 6 . 19 Missed 31 | . 27 2 . 2 Hits 80 | . 59 4 . 17 Projectile 80 | . 59 4 . 17 AOE 14 | . . . . 14 Damage Taken 1284 | . 617 62 . 605 Core 254 | . 142 . . 112 Absorbed by Shields . | . . . . . Regen/Repaired (Parts) 114 | . 114 . . . Core Remaining (%) 100 | 100 . . . . Volleys Fired 99 | 6 76 9 . 8 Largest 2 | 2 2 2 . 2 Hottest 160 | 60 160 80 . 80 Shots Fired 196 | 12 150 18 . 16 Gun 110 | 12 81 9 . 8 Cannon 82 | . 65 9 . 8 Launcher . | . . . . . Special 4 | . 4 . . . Kinetic 95 | 6 72 9 . 8 Thermal 101 | 6 78 9 . 8 Explosive . | . . . . . Electromagnetic . | . . . . . Robot Hit Streak 10 | 8 6 9 . 10 Robot Miss Streak 7 | 1 4 2 . 7 Penetration Max . | . . . . . Secondary Targets 1 | . 1 . . . Max Gunslinging Chain 1 | . 1 . . . Shots Hit Robots 102 | 9 75 12 . 6 Core Hits 48 | 5 35 5 . 3 Critical Kills 1 | . . 1 . . Critical Parts Destroyed . | . . . . . Critical Strikes 1 | . . 1 . . Meltdown 1 | . . 1 . . Melee Attacks . | . . . . . Impact . | . . . . . Slashing . | . . . . . Piercing . | . . . . . Sneak Attacks . | . . . . . Combat Hostiles . | . . . . . Follow-up Attacks . | . . . . . Damage Inflicted 1573 | 106 1152 200 . 115 Guns 758 | 106 550 76 . 26 Cannons 815 | . 602 124 . 89 Explosions . | . . . . . Melee . | . . . . . Ramming . | . . . . . Kinetic 655 | 62 491 76 . 26 Thermal 918 | 44 661 124 . 89 Explosive . | . . . . . Electromagnetic . | . . . . . Impact . | . . . . . Slashing . | . . . . . Piercing . | . . . . . Highest Corruption . | . . . . . Average Corruption . | . . . . . Corruption Purged . | . . . . . Corruption Blocked . | . . . . . Overload Shots . | . . . . . Overflow Damage 8 | . 8 . . . Projectiles 8 | . 8 . . . Explosions . | . . . . . Melee . | . . . . . Knockbacks . | . . . . . Impact . | . . . . . Kinetic . | . . . . . Secondary . | . . . . . Self-Inflicted Damage . | . . . . . Shots . | . . . . . Rammed . | . . . . . Targets Rammed . | . . . . . Kicked . | . . . . . Crushed . | . . . . . Highest Temperature 228 | . 228 117 . 72 Average Temperature 53 | . 56 46 . 28 Received Heat Transfer 345 | . 309 36 . . Siege Activations . | . . . . . Martial Activations . | . . . . . Shielding Activations . | . . . . . Robots Disrupted . | . . . . . Combat Hostiles . | . . . . . Robots Corrupted . | . . . . . Combat Hostiles . | . . . . . Parts Fried . | . . . . . Impact Corruptions . | . . . . . Robots Melted 1 | . . 1 . . Combat Hostiles 1 | . . 1 . . Parts Melted 3 | . 1 2 . . Heat Transferred 1927 | 100 1383 259 . 185 Parts Sabotaged . | . . . . . Parts Stolen . | . . . . . Parts Stripped . | . . . . . Power Chain Reactions . | . . . . . Alert | -11 -10 -10 -10 -9 ------- Run | Yrd Mat Min Exi Min Maximum Alert Level 1 | . 1 . . . Low Security (%) 97 | 100 96 100 . 100 Level 1 2 | . 3 . . . Level 2 . | . . . . . Level 3 . | . . . . . Level 4 . | . . . . . Level 5 . | . . . . . High Security . | . . . . . Max Security . | . . . . . Peak Influence 224 | 10 224 40 . 122 Initial . | . . . . . Average 30 | 2 46 2 . 38 Influence Increases 831 | 20 604 65 . 142 Destroy 0b10 Robot/C 560 | . 420 40 . 100 Destroy 0b10 Robot/NC 65 | 20 30 15 . . Destroy Leader 104 | . 84 10 . 10 Allied During Kill 17 | . . . . 17 Successful Hack 34 | . 34 . . . Disable Machine 15 | . 15 . . . Destroy Structure 6 | . 6 . . . Lose Combat Pursuer 30 | . 15 . . 15 Influence Decreases 831 | 20 604 65 . 142 Time Decay 615 | 20 388 65 . 142 Lost Part 10 | . 10 . . . Purge Threat 206 | . 206 . . . Squads Dispatched 5 | . 5 . . . Investigation 4 | . 4 . . . Extermination . | . . . . . Reinforcement 1 | . 1 . . . Assault . | . . . . . Garrison . | . . . . . Intercept . | . . . . . Searches Triggered . | . . . . . Construction Impeded . | . . . . . Haulers Reinforced . | . . . . . Active Scanning Responses . | . . . . . Cargo Convoy Interrupts . | . . . . . Stealth | -11 -10 -10 -10 -9 --------- Run | Yrd Mat Min Exi Min Distress Signals 2 | . 2 . . . Communications Jammed . | . . . . . Distress Signals . | . . . . . Times Spotted 41 | . 31 2 . 8 Peak Tracking Total 4 | . 4 2 . 3 Tactical Retreats 2 | . 1 . . 1 Traps | -11 -10 -10 -10 -9 ------- Run | Yrd Mat Min Exi Min Traps Triggered 1 | . 1 . . . Indirectly . | . . . . . Trap Hack Attempts . | . . . . . Triggered . | . . . . . Disarmed . | . . . . . Reprogrammed . | . . . . . Reused . | . . . . . Traps Extracted . | . . . . . Installed . | . . . . . Triggered . | . . . . . Machines | -11 -10 -10 -10 -9 ---------- Run | Yrd Mat Min Exi Min Machines Disabled 1 | . 1 . . . Max in Single Turn 1 | . 1 . . . Machines Repaired . | . . . . . Machines Dismantled . | . . . . . Machines Sabotaged . | . . . . . Overloaded Fab Kills . | . . . . . Hacking | -11 -10 -10 -10 -9 --------- Run | Yrd Mat Min Exi Min Machines Accessed 10 | . 8 . 2 . Terminals 7 | . 7 . . . Fabricators . | . . . . . Repair Stations 1 | . 1 . . . Recycling Units . | . . . . . Scanalyzers . | . . . . . Garrison Access . | . . . . . Total Hacks 33 | . 31 . 2 . Successful 19 | . 17 . 2 . Failed 13 | . 13 . . . Catastrophic 2 | . 2 . . . Database Lockouts 1 | . 1 . . . Manual 22 | . 21 . 1 . Terminals 28 | . 28 . . . Fabricators . | . . . . . Repair Stations 3 | . 3 . . . Recycling Units . | . . . . . Scanalyzers . | . . . . . Garrison Access . | . . . . . Terminal Hacks 13 | . 11 . 2 . Record 1 | . . . 1 . Robot Analysis 3 | . 3 . . . Terminal Index 1 | . 1 . . . Unreport Threat 2 | . 2 . . . Locate Traps 4 | . 4 . . . Hauler Manifests 1 | . 1 . . . Proto ID Catalog 1 | . . . 1 . Fabricator Hacks . | . . . . . Repair Station Hacks 2 | . 2 . . . Scan Component 1 | . 1 . . . Repair 1 | . 1 . . . Recycling Unit Hacks . | . . . . . Scanalyzer . | . . . . . Garrison Access Hacks . | . . . . . Unauthorized Hacks 4 | . 4 . . . Terminals 4 | . 4 . . . Botnet 3 | . 3 . . . Operators 1 | . 1 . . . Fabricators . | . . . . . Repair Stations . | . . . . . Recycling Units . | . . . . . Scanalyzers . | . . . . . Garrison Access . | . . . . . Data Cores Recovered . | . . . . . Used . | . . . . . Hacking Detections 7 | . 7 . . . Full Trace Events 4 | . 4 . . . Feedback Events . | . . . . . Feedback Blocked . | . . . . . Robot Schematics Acquired . | . . . . . Robots Built . | . . . . . Authchips . | . . . . . Time . | . . . . . Total Robot Build Rating . | . . . . . Part Schematics Acquired . | . . . . . Parts Built . | . . . . . Authchips . | . . . . . Time . | . . . . . Total Part Build Rating . | . . . . . Parts Repaired 1 | . 1 . . . Time 26 | . 26 . . . Parts Recycled . | . . . . . Recycled Matter . | . . . . . Retrieved Matter . | . . . . . Retrieved Components . | . . . . . Parts Scanalyzed . | . . . . . Part Schematics Acquired . | . . . . . Parts Damaged . | . . . . . Bothacking | -11 -10 -10 -10 -9 ------------ Run | Yrd Mat Min Exi Min Used RIF Installer . | . . . . . Robots Hacked . | . . . . . Non-combat . | . . . . . Combat . | . . . . . Robot Hacks Applied . | . . . . . Relay Couplers Released . | . . . . . Fabnet Peak Effective % . | . . . . . Robots Rewired . | . . . . . Allies Hacked . | . . . . . Hacks Repelled . | . . . . . Allies | -11 -10 -10 -10 -9 -------- Run | Yrd Mat Min Exi Min Total Allies 3 | . . 3 . . Largest Group 3 | . . 3 3 3 Highest-Rated Group 40 | . . 40 40 40 Highest-Rated Ally 16 | . . 16 16 16 Total Orders . | . . . . . Ally Attacks 13 | . . . . 13 Total Damage 121 | . . . . 121 Kills 2 | . . . . 2 Allies Corrupted . | . . . . . Allies Melted . | . . . . . Intel | -11 -10 -10 -10 -9 ------- Run | Yrd Mat Min Exi Min Active Infowar (turns) 3742 | 20 1717 1031 548 426 Structural 1745 | . 1596 149 . . Seismic 1997 | 20 121 882 548 426 Robot Analysis Total 3 | . 3 . . . Derelict Logs Recovered 1 | . . 1 . . Drone Launches . | . . . . . Drone Recoveries . | . . . . . Exploration | -11 -10 -10 -10 -9 ------------- Run | Yrd Mat Min Exi Min Turns Passed 3812 | 84 1717 1031 548 432 Spaces Moved 2103 | 28 872 617 341 245 Core . | . . . . . Treads 2079 | 4 872 617 341 245 Legs 24 | 24 . . . . Wheels . | . . . . . Hover . | . . . . . Flight . | . . . . . Fastest Speed 120 | 120 160 160 160 160 Average Speed 159 | 125 160 160 160 160 Slowest Speed 240 | 160 240 160 160 240 Overloaded Moves . | . . . . . Propulsion Burnouts . | . . . . . Robots Hopped . | . . . . . Potential Cave-ins . | . . . . . Cave-ins Triggered . | . . . . . Exploration Rate (%) 65 | 3 97 96 70 60 Regions Visited 4 Branch Regions 3 Pre-discovered Areas 2 | . . 1 1 . Known Exits Taken . | . . . . . Unknown Exits Taken 4 | 1 1 1 1 . Scrap Searched 1 | . . 1 . . Spaces Dug 4 | . 4 . . . Terrain Destroyed 4 | . 4 . . . Melee . | . . . . . Projectile 4 | . 4 . . . AOE . | . . . . . Terrain Rammed . | . . . . . Walls Destroyed . | . . . . . Machines Disabled . | . . . . . Actions | -11 -10 -10 -10 -9 --------- Run | Yrd Mat Min Exi Min Total 2351 | 66 1032 642 344 267 Wait 102 | 22 54 14 2 10 Move 2099 | 27 871 616 340 245 Hop . | . . . . . Pick Up 19 | 3 13 1 1 1 Fast Attach 2 | 1 1 . . . Attach 5 | 2 1 1 . 1 Detach . | . . . . . Swap 14 | 1 11 1 . 1 Drop 11 | 4 5 . 1 1 Fire 99 | 6 76 9 . 8 Melee . | . . . . . Ram . | . . . . . Kick . | . . . . . Crush . | . . . . . Escape Stasis . | . . . . . Rewire . | . . . . . Trap . | . . . . . Miscellaneous . | . . . . . Route ------- -11/Scrapyard -10/Materials (discovered 6 exits: [*Mat x3] / [*Min x2] / [*Sub]) -10/Mines (discovered 4 exits: [*Mat x2] / *Exi / [*Sub]) -10/Exiles -9/Mines History --------- Turn | Location | Event 6 | -11/Scrapyard | Discovered new exit (range 3) 85 | -11/Scrapyard | Entered Materials 303 | -10/Materials | Build established: Mutant 346 | -10/Materials | Discovered new exit (range 8) 376 | -10/Materials | Discovered new exit (range 11) 585 | -10/Materials | Derelicts attacked the area 812 | -10/Materials | Core integrity fell below 50% 814 | -10/Materials | Repaired Lgt. Treads 863 | -10/Materials | Discovered new exit (range 16) 899 | -10/Materials | Discovered new exit (range 7) 931 | -10/Materials | Central database locked down 1020 | -10/Materials | Discovered new exit (range 16) 1298 | -10/Materials | Discovered new exit (range 9) 1802 | -10/Materials | Entered Mines 1954 | -10/Mines | Discovered new exit (range 8) 1988 | -10/Mines | Learned location of Storage (-9) 2088 | -10/Mines | A weapon hastily lodged in a ceiling crevice suddenly fell to the ground 2402 | -10/Mines | Discovered new exit (range 9) 2408 | -10/Mines | Learned 2 Materials zone layouts 2418 | -10/Mines | Assisted by bots powering up and referring to "LRC-V3" 2795 | -10/Mines | Discovered new exit (range 6) 2819 | -10/Mines | Deemed a non-threat by the Exiles lab entrance 2819 | -10/Mines | Discovered new exit (range 5) 2833 | -10/Mines | Entered Exiles 2833 | -10/Exiles | Accompanied by 3 allies 2872 | -10/Exiles | Met 8R-AWN 2899 | -10/Exiles | Met EX-HEX 2961 | -10/Exiles | Met EX-DEC 2971 | -10/Exiles | Learned location of Zion (-6) 2997 | -10/Exiles | Met EX-BIN 3019 | -10/Exiles | Aligned with FarCom system 3021 | -10/Exiles | Given EX-Vault access code 3057 | -10/Exiles | Opened EX-Vault 3101 | -10/Exiles | Warned to stay clear of 0b10 Research branches 3136 | -10/Exiles | Found Modified TNC 3358 | -10/Exiles | Discovered new exit (range 14) 3381 | -10/Exiles | Left Exiles lab with Modified TNC 3381 | -10/Exiles | Entered Mines 3381 | -9/Mines | Accompanied by 3 allies 3531 | -9/Mines | Received a Rocket Launcher from a helpful Derelict 3788 | -9/Mines | Assembled infested the area 3793 | -9/Mines | Assisted by a Guerilla fighting off Assembled 3813 | -9/Mines | Core integrity fell below 20% 3813 | -9/Mines | Destroyed by D-53 Grenadier with Mini Grenade Launcher Last Messages --------------- 03560_ Dropped Beam Cannon. 03560_ Acquired Rocket Launcher. 03563_ Acquired 14 matter. 03595_ T-07 Excavator is excavating. 03788_ ALERT: Infestation in the mines, dispatching Demolisher response squad. 03793_ A derelict emerges from the shadows: "You need to get out of here! I've been tracking a group of Assembled to figure out where they're coming from, and they're closing on this area, come on!" 03798_ Lgt. Treads destroyed. 03800_ Trooper 1b destroyed. 03802_ Mercenary 1a destroyed. 03802_ Trooper 1a destroyed. 03806_ K-01 Serf collects debris. 03807_ Assault Rifle destroyed. 03807_ Seismic Detector destroyed. 03810_ Ion Engine destroyed. 03810_ K-01 Serf collects debris. 03812_ Assault Rifle destroyed. Map ----- +----------------------------------------------------+ | ???????????????## ##?????## #? ##????? | | ??????????????## ##????# #####?????? | | ??????????????# #????# #????????? | | ??????????????# ?????## # #???????? | | ???????????????# #??????# ### #???????? | | ????????????????# #??????# #??####???????? | | ???????????????## ######## #?????????????? | | ??????????????## """ ## #?????????????? | | ????????????### """ #?????????????? | | ???????????## """ #?????????????? | | ???????????# #?????????????? | | ???????????# #### ##????????????? | | ??????????## ##??# #????????????? | | ?????###### ###???# #???????????? | | ????## ## ##?????# #???????????? | | ???## #??????## ## ##???????????? | | ???# ##??????## ######????????????? | | ??# ######### #?????????????????? | | ??# #?????????????????? | | ??## #?????????????????? | | ???## ######## # ##?????????????????? | | ????## ### ##???## ###??????????????????? | | ?????#####?#####???## #??????????????????? | | ???????????????????# #??????????????????? | | ???????????????????## ##?????????????????? | | ???????????????????# @ #?????????????????? | | ???????????????????# #?????????????????? | | ???????????????????# ##?????????????????? | | ???????????????????## #??????????????????? | | ????????????????????# # #??????????? | | ????????????????????# #????????????? | | ????????????????????## ##????????????? | | ?????????????????????## k#######?????????????? | | ??????????????????????####d #???????????????????? | | ?????????????????????????? d#???????????????????? | | ?????????????????????????? $#???????????????????? | | ?????????????????????????? #???????????????????? | | ?????????????????????????? % ???????????????????? | | ??????????????????????????###???????????????????? | | ????????????????????????????????????????????????? | | ????????????????????????????????????????????????? | | ????????????????????????????????????????????????? | | ????????????????????????????????????????????????? | | ????????????????????????????????????????????????? | | ????????????????????????????????????????????????? | | ????????????????????????????????????????????????? | | ????????????????????????????????????????????????? | | ????????????????????????????????????????????????? | | ????????????????????????????????????????????????? | | | +----------------------------------------------------+ Best States ------------- Heat Dissipation 25 Energy Generation 10 Energy Capacity 250 Matter Stores 300 Matter Capacity 300 Sight Range 16 Terrain Scan Density 10 Evasion (%) 50 Recoil Reduction 2 Item Schematics ----------------- None Robot Schematics ------------------ None Fabricated ------------ Nothing Repaired ---------- Lgt. Treads | 18% | -10/Materials Alien Tech Used ----------------- None Achievements -------------- None Challenges ------------ None Game ------ Seed ConstructSpreadWeb Manual? 0 Play Time 00:19:20 Cumulative 672.6 hours Start 2025.07.20 @ 22:39:36 End 2025.07.20 @ 22:59:58 Sessions 1 Manual Loads 0 Difficulty Rogue Special Mode None Game No. 305 Rogue 161 Adventurer 144 Explorer 0 Win Type - Total 11 Types 4/1/5/1/0/0/0/0/0/0 Lore% 86 Gallery% 81 Achievement% 73 Wizard Run 0 Options --------- Layout 0 ASCII 0 Keyboard 0 Movement Mouse Keybinds 0 Fullscreen 2 Font 20/SmallcapsGlow Map View 66x50 Zoom Use 0% Tactical HUD 1 Map Filters NONE Filters NONE Steam 1 RUN: e3f98373-7475-40d6-93f7-7f2afba144d4